fUSD/lending_fUSD_20260112
["ID","MTS","AMOUNT","RATE_DAILY","PERIOD"]
[401483078,1768259446409,-150.0,0.00017543,2]
[401483079,1768259446418,-158.91856111,0.00017549,2]
[401483080,1768259446428,-150.0,0.0001755,2]
[401483081,1768259446438,-150.0,0.0001755,2]
[401483082,1768259446447,-150.0,0.0001755,2]
[401483083,1768259446458,-150.0,0.0001755,2]
[401483084,1768259446467,-150.0,0.0001755,2]
[401483085,1768259446477,-150.0,0.0001755,2]
[401483086,1768259446486,-150.0,0.0001755,2]
[401483087,1768259446495,-150.0,0.00017557,2]
[401483088,1768259446505,-150.0,0.00017564,2]
[401483089,1768259446514,-150.0,0.00017567,2]
[401483090,1768259446523,-150.0,0.00017571,2]
[401483091,1768259446762,-244.0,0.00017573,2]
[401483092,1768259446772,-150.0,0.00017574,2]
[401483093,1768259446782,-150.0,0.00017579,2]
[401483094,1768259446791,-179.56021801,0.00017586,2]
[401483095,1768259446801,-150.0,0.00017587,2]
[401483096,1768259446810,-150.0,0.00017587,2]
[401483097,1768259446820,-150.0,0.00017591,2]
[401483098,1768259446829,-150.0,0.00017597,2]
[401483099,1768259446839,-150.0,0.000176,2]
[401483100,1768259446848,-150.0,0.000176,2]
[401483101,1768259446857,-2351.391,0.00017614,2]
[401483102,1768259446867,-170.031,0.00017614,2]
[401483103,1768259446876,-150.0,0.00017616,2]
[401483104,1768259446886,-150.0,0.00017617,2]
[401483105,1768259446896,-150.0,0.00017618,2]
[401483106,1768259446905,-500.0,0.0001762,2]
[401483107,1768259446914,-166.96227274,0.00017621,2]
[401483108,1768259446924,-500.0,0.00017621,2]
[401483109,1768259446934,-1031.96318574,0.00017621,2]
[401483110,1768259446943,-1000.0,0.00017621,2]
[401483111,1768259446953,-1000.0,0.00017621,2]
[401483112,1768259446963,-503.84192068,0.00017621,2]
[401483113,1768259446972,-1000.0,0.00017621,2]
[401483114,1768259446983,-987.57806594,0.00017621,2]
[401483115,1768259446992,-1000.0,0.00017621,2]
[401483116,1768259447003,-500.0,0.00017621,2]
[401483117,1768259447013,-1000.0,0.00017621,2]
[401483118,1768259447023,-1000.0,0.00017621,2]
[401483119,1768259447032,-800.28905191,0.00017621,2]
[401483120,1768259447042,-1005.81602002,0.00017621,2]
[401483121,1768259447052,-500.0,0.00017621,2]
[401483122,1768259447062,-540.4577012,0.00017621,2]
[401483123,1768259447072,-1010.77976475,0.00017621,2]
[401483124,1768259447082,-500.0,0.00017621,2]
[401483125,1768259447095,-1000.0,0.00017621,2]
[401483126,1768259447105,-1000.0,0.00017621,2]
[401483127,1768259447115,-872.06319895,0.00017621,2]
[401483128,1768259447124,-1133.20600999,0.00017621,2]
[401483129,1768259447133,-989.61533507,0.00017621,2]
[401483130,1768259447143,-1000.0,0.00017621,2]
[401483131,1768259447153,-1000.0,0.00017621,2]
[401483132,1768259447162,-1000.0,0.00017621,2]
[401483133,1768259447172,-1000.0,0.00017621,2]
[401483134,1768259447181,-500.0,0.00017621,2]
[401483135,1768259447191,-648.07606732,0.00017621,2]
[401483136,1768259447200,-500.0,0.00017621,2]
[401483137,1768259447210,-1000.0,0.00017621,2]
[401483138,1768259447220,-483.67,0.00017621,2]
[401483139,1768259447230,-150.0,0.00017621,2]
[401483140,1768259447239,-150.0,0.00017625,2]
[401483141,1768259447248,-150.0,0.00017629,2]
[401483142,1768259447258,-150.0,0.00017633,2]
[401483143,1768259447268,-150.0,0.0001764,2]
[401483144,1768259447278,-6675.57625126,0.0001764,2]
[401483145,1768259447288,-150.0,0.00017645,2]
[401483146,1768259447298,-150.0,0.00017645,2]
[401483147,1768259447308,-150.0,0.00017646,2]
[401483148,1768259447324,-553.64373807,0.00017647,2]
[401483149,1768259447333,-151.0,0.00017647,2]
[401483150,1768259447343,-150.0,0.00017655,2]
[401483151,1768259447352,-150.0,0.00017657,2]
[401483152,1768259447363,-150.0,0.00017662,2]
[401483153,1768259447372,-150.0,0.00017662,2]
[401483154,1768259447381,-150.0,0.00017667,2]
[401483155,1768259447392,-150.0,0.00017668,2]
[401483156,1768259447401,-6157.84376205,0.0001767,2]
[401483157,1768259447411,-150.0,0.00017673,2]
[401483158,1768259447420,-150.0,0.00017675,2]
[401483159,1768259447429,-150.0,0.00017686,2]
[401483160,1768259447439,-150.0,0.00017692,2]
[401483161,1768259447448,-150.0,0.00017694,2]
[401483162,1768259447458,-500.0,0.00017699,2]
[401483163,1768259447467,-150.0,0.00017699,2]
[401483164,1768259447482,-500.0,0.00017699,2]
[401483165,1768259447492,-150.0,0.00017699,2]
[401483166,1768259447501,-150.0,0.00017699,2]
[401483167,1768259447510,-150.0,0.00017699,2]
[401483168,1768259447519,-150.0,0.00017699,2]
[401483169,1768259447529,-500.0,0.00017699,2]
[401483170,1768259447538,-150.0,0.00017699,2]
[401483171,1768259447547,-150.0,0.00017699,2]
[401483172,1768259447556,-150.0,0.00017699,2]
[401483173,1768259447566,-150.0,0.000177,2]
[401483174,1768259447575,-150.0,0.000177,2]
[401483175,1768259447584,-150.0,0.000177,2]
[401483176,1768259447594,-150.0,0.00017705,2]
[401483177,1768259447603,-1000.0,0.00017709,2]
[401483178,1768259447613,-150.0,0.00017714,2]
[401483179,1768259447622,-150.0,0.00017716,2]
[401483180,1768259447632,-150.0,0.00017727,2]
[401483181,1768259447642,-150.0,0.0001773,2]
[401483182,1768259447651,-150.0,0.00017732,2]
[401483183,1768259447662,-150.0,0.00017733,2]
[401483185,1768259447671,-150.0,0.00017734,2]
[401483186,1768259447681,-150.0,0.00017738,2]
[401483187,1768259447691,-150.0,0.00017739,2]
[401483188,1768259447699,-150.0,0.00017743,2]
[401483189,1768259447708,-500.0,0.00017754,2]
[401483190,1768259447717,-150.0,0.00017754,2]
[401483191,1768259447726,-500.0,0.00017754,2]
[401483192,1768259447742,-150.0,0.00017754,2]
[401483193,1768259447759,-150.0,0.00017754,2]
[401483194,1768259447775,-150.0,0.00017754,2]
[401483195,1768259447785,-150.0,0.00017754,2]
[401483196,1768259447794,-500.0,0.00017754,2]
[401483197,1768259447803,-150.0,0.00017754,2]
[401483198,1768259447813,-150.0,0.00017754,2]
[401483199,1768259447822,-150.0,0.00017755,2]
[401483200,1768259447831,-150.0,0.00017763,2]
[401483201,1768259447840,-150.0,0.00017767,2]
[401483202,1768259447850,-150.0,0.0001777,2]
[401483203,1768259447859,-150.0,0.00017771,2]
[401483204,1768259447868,-250.0,0.00017772,2]
[401483205,1768259447878,-150.0,0.00017775,2]
[401483206,1768259447887,-150.0,0.00017775,2]
[401483207,1768259447897,-150.0,0.00017775,2]
[401483208,1768259447906,-150.0,0.00017775,2]
[401483209,1768259447915,-150.0,0.00017782,2]
[401483210,1768259447924,-150.0,0.00017787,2]
[401483211,1768259447933,-2000.0,0.000178,2]
[401483212,1768259447942,-33580.3823,0.000178,2]
[401483213,1768259447952,-150.0,0.000178,2]
[401483214,1768259447962,-150.0,0.000178,2]
[401483215,1768259447972,-156.587,0.00017807,2]
[401483216,1768259447981,-174.30171844,0.00017808,2]
[401483217,1768259447991,-150.0,0.00017809,2]
[401483218,1768259448000,-500.0,0.00017809,2]
[401483219,1768259448010,-500.0,0.00017809,2]
[401483220,1768259448019,-200.0,0.00017809,2]
[401483221,1768259448028,-200.0,0.00017809,2]
[401483222,1768259448038,-150.0,0.00017809,2]
[401483223,1768259448047,-200.0,0.00017809,2]
[401483224,1768259448056,-500.0,0.00017809,2]
[401483225,1768259448066,-200.0,0.00017809,2]
[401483226,1768259448076,-200.0,0.00017809,2]
[401483227,1768259448086,-150.0,0.00017809,2]
[401483228,1768259448095,-150.0,0.00017811,2]
[401483229,1768259448105,-150.0,0.00017812,2]
[401483230,1768259448115,-150.0,0.0001782,2]
[401483231,1768259448125,-150.0,0.00017823,2]
[401483233,1768259448135,-150.0,0.00017829,2]
[401483234,1768259448145,-150.0,0.00017833,2]
[401483235,1768259448154,-150.0,0.00017834,2]
[401483236,1768259448164,-150.0,0.00017836,2]
[401483237,1768259448175,-150.0,0.00017847,2]
[401483238,1768259448185,-150.0,0.0001785,2]
[401483239,1768259448195,-150.0,0.00017852,2]
[401483240,1768259448204,-200.0,0.00017856,2]
[401483241,1768259448214,-150.0,0.00017857,2]
[401483242,1768259448224,-150.0,0.00017858,2]
[401483243,1768259448234,-500.0,0.00017863,2]
[401483244,1768259448244,-500.0,0.00017863,2]
[401483245,1768259448253,-150.0,0.00017863,2]
[401483246,1768259448263,-500.0,0.00017863,2]
[401483247,1768259448272,-150.0,0.00017864,2]
[401483248,1768259448283,-150.0,0.00017867,2]
[401483249,1768259448292,-25000.0,0.00017874,3]
[401483250,1768259448302,-150.0,0.00017882,2]
[401483251,1768259448311,-150.0,0.00017882,2]
[401483252,1768259448323,-25000.0,0.00017882,3]
[401483253,1768259448333,-737.0,0.00017885,2]
[401483254,1768259448343,-150.0,0.00017885,2]
[401483255,1768259448352,-150.0,0.00017886,2]
[401483256,1768259448362,-150.0,0.00017887,2]
[401483257,1768259448372,-150.0,0.00017887,2]
[401483258,1768259448381,-150.0,0.00017891,2]
[401483259,1768259448392,-25000.0,0.00017891,3]
[401483260,1768259448402,-3996.0,0.00017894,2]
[401483261,1768259448412,-483.67,0.00017895,2]
[401483262,1768259448421,-500.0,0.00017899,2]
[401483263,1768259448431,-3214.9551,0.000179,2]
[401483264,1768259448440,-151.0937,0.000179,2]
[401483265,1768259448450,-25000.0,0.000179,3]
[401483266,1768259448459,-10000.0,0.000179,2]
[401483267,1768259448469,-13170.18869958,0.000179,3]
[401483268,1768259448477,-415.57873066,0.000179,2]
[401483269,1768259448487,-150.0,0.000179,2]
[401483270,1768259448496,-4057.51473601,0.000179,2]
[401483271,1768259448506,-2297.11915251,0.000179,2]
[401483272,1768259448515,-2297.11915251,0.000179,2]
[401483273,1768259448524,-2297.11915251,0.000179,2]
[401483274,1768259448533,-2297.11915251,0.000179,2]
[401483275,1768259448542,-2297.11915251,0.000179,2]
[401483276,1768259448552,-2297.11915251,0.000179,2]
[401483277,1768259448561,-2297.11915251,0.000179,2]
[401483278,1768259448571,-2297.11915251,0.000179,2]
[401483279,1768259448580,-2297.11915251,0.000179,2]
[401483280,1768259448589,-2297.11915251,0.000179,2]
[401483281,1768259448599,-2297.11915251,0.000179,2]
[401483282,1768259448609,-5800.0,0.000179,2]
[401483284,1768259448619,-186.24381303,0.000179,2]
[401483285,1768259448628,-168.22848512,0.000179,2]
[401483286,1768259448637,-12896.12483026,0.000179,2]
[401483287,1768259448646,-7368.0,0.000179,2]
[401483288,1768259448655,-150.0,0.00017905,2]
[401483289,1768259448665,-150.0,0.0001791,2]
[401483290,1768259448674,-150.0,0.00017911,2]
[401483291,1768259448683,-150.0,0.00017914,2]
[401483292,1768259448692,-500.0,0.00017918,2]
[401483293,1768259448701,-500.0,0.00017918,2]
[401483294,1768259448711,-219.0,0.00017918,2]
[401483295,1768259448720,-471.9842,0.00017918,2]
[401483296,1768259448729,-150.0,0.00017918,2]
[401483297,1768259448739,-150.0,0.00017923,2]
[401483298,1768259448748,-150.0,0.00017925,2]
[401483299,1768259448757,-150.0,0.00017929,2]
[401483300,1768259448768,-150.0,0.00017933,2]
[401483301,1768259448777,-150.0,0.00017941,2]
[401483302,1768259448786,-150.0,0.00017943,2]
[401483303,1768259448796,-150.0,0.00017945,2]
[401483304,1768259448806,-150.0,0.00017953,2]
[401483305,1768259448816,-150.0,0.00017962,2]
[401483306,1768259448825,-150.0,0.00017963,2]
[401483307,1768259448835,-150.0,0.00017967,2]
[401483308,1768259448844,-150.0,0.0001797,2]
[401483309,1768259448853,-150.0,0.00017971,2]
[401483310,1768259448863,-500.0,0.00017973,2]
[401483311,1768259448872,-500.0,0.00017973,2]
[401483312,1768259448882,-500.0,0.00017973,2]
[401483313,1768259448896,-610.36957715,0.00017973,2]
[401483314,1768259448913,-500.0,0.00017973,2]
[401483315,1768259448932,-500.0,0.00017973,2]
[401483316,1768259448953,-273.6592917,0.00017973,2]
[401483317,1768259448965,-150.0,0.00017973,2]
[401483318,1768259448975,-642.03010417,0.00017973,2]
[401483319,1768259448985,-162.85500377,0.00017973,2]
[401483320,1768259448995,-500.0,0.00017973,2]
[401483321,1768259449005,-500.0,0.00017973,2]
[401483322,1768259449015,-500.0,0.00017973,2]
[401483323,1768259449025,-191.10319937,0.00017973,2]
[401483324,1768259449034,-500.0,0.00017973,2]
[401483325,1768259449044,-500.0,0.00017973,2]
[401483326,1768259449053,-460.80722915,0.00017973,2]
[401483327,1768259449063,-500.0,0.00017973,2]
[401483328,1768259449072,-500.0,0.00017973,2]
[401483329,1768259449082,-500.0,0.00017973,2]
[401483331,1768259449092,-500.0,0.00017973,2]
[401483332,1768259449102,-500.0,0.00017973,2]
[401483333,1768259449112,-150.34167383,0.00017973,2]
[401483334,1768259449121,-500.0,0.00017973,2]
[401483335,1768259449217,-500.0,0.00017973,2]
[401483336,1768259449227,-500.0,0.00017973,2]
[401483337,1768259449237,-500.0,0.00017973,2]
[401483338,1768259449247,-500.0,0.00017973,2]
[401483339,1768259449256,-500.0,0.00017973,2]
[401483340,1768259449266,-500.0,0.00017973,2]
[401483341,1768259449276,-501.2767774,0.00017973,2]
[401483342,1768259449286,-500.0,0.00017973,2]
[401483343,1768259449295,-500.0,0.00017973,2]
[401483344,1768259449305,-500.0,0.00017973,2]
[401483345,1768259449318,-500.0,0.00017973,2]
[401483346,1768259449327,-515.69548792,0.00017973,2]
[401483347,1768259449337,-500.0,0.00017973,2]
[401483348,1768259449347,-500.0,0.00017973,2]
[401483349,1768259449355,-500.0,0.00017973,2]
[401483350,1768259449366,-500.0,0.00017973,2]
[401483351,1768259449375,-500.0,0.00017973,2]
[401483352,1768259449384,-500.0,0.00017973,2]
[401483353,1768259449395,-500.0,0.00017973,2]
[401483354,1768259449404,-500.0,0.00017973,2]
[401483355,1768259449414,-500.0,0.00017973,2]
[401483356,1768259449423,-500.0,0.00017973,2]
[401483357,1768259449432,-500.0,0.00017973,2]
[401483358,1768259449441,-500.0,0.00017973,2]
[401483359,1768259449450,-500.0,0.00017973,2]
[401483360,1768259449460,-500.0,0.00017973,2]
[401483361,1768259449469,-382.22994489,0.00017973,2]
[401483362,1768259449478,-150.0,0.00017973,2]
[401483363,1768259449488,-500.0,0.00017973,2]
[401483364,1768259449497,-193.4694691,0.00017973,2]
[401483365,1768259449507,-150.0,0.00017976,2]
[401483366,1768259449516,-500.0,0.00017982,2]
[401483367,1768259449525,-483.79950639,0.0001799,2]
[401483368,1768259449535,-483.79950639,0.0001799,2]
[401483369,1768259449544,-500.0,0.00017997,2]
[401483371,1768259449553,-500.0,0.00017997,2]
[401483372,1768259449563,-500.0,0.00017997,2]
[401483373,1768259449572,-500.0,0.00017997,2]
[401483374,1768259449581,-1133.0889247,0.00017998,2]
[401483375,1768259449591,-282561.7657624,0.00017998,2]
[401483376,1768259449600,-708342.0464093,0.00017998,2]
[401483377,1768259449609,-11133.4112672,0.00017998,2]
[401483378,1768259449619,-5318.0044937,0.00017998,2]
[401483379,1768259449628,-188000.7436538,0.00017998,2]
[401483380,1768259449637,-1978.6847768,0.00017998,2]
[401483381,1768259449646,-30397.7847275,0.00017998,2]
[401483382,1768259449655,-16414.8294861,0.00017998,2]
[401483383,1768259449665,-300.0,0.00017999,2]
[401483384,1768259449674,-300.0,0.00017999,2]
[401483385,1768259449683,-300.0,0.00017999,2]
[401483386,1768259449692,-300.0,0.00017999,2]
[401483387,1768259449702,-300.0,0.00017999,2]
[401483388,1768259449711,-249.76041872,0.00017999,2]
[401483389,1768259449720,-500.0,0.00017999,2]
[401483390,1768259449729,-500.0,0.00017999,2]
[401483391,1768259449738,-500.0,0.00017999,2]
[401483392,1768259449747,-500.0,0.00017999,2]
[401483393,1768259449756,-500.0,0.00017999,2]
[401483394,1768259449765,-553.74,0.00017999,2]
[401483395,1768259449775,-327554.33702357,0.00018,2]
[401483396,1768259449784,-150.0,0.00018,2]
[401483397,1768259449793,-222.27772383,0.00018,2]
[401483398,1768259449804,-152.17395716,0.00018,2]
[401483399,1768259449813,-175.66676681,0.00018,2]
[401483400,1768259449823,-150.0,0.00018,2]
[401483401,1768259449832,-285.23983713,0.00018,2]
[401483402,1768259449842,-253.63396576,0.00018,2]
[401483403,1768259449851,-150.0,0.00018,2]
[401483404,1768259449861,-233.12924122,0.00018,2]
[401483405,1768259449870,-150.0,0.00018,2]
[401483406,1768259449879,-150.00000001,0.00018,2]
[401483407,1768259449889,-150.0,0.00018,2]
[401483408,1768259449898,-258.8757006,0.00018,2]
[401483409,1768259449907,-150.0,0.00018,2]
[401483410,1768259449917,-150.0,0.00018,2]
[401483411,1768259449926,-326628.28795238,0.00018,2]
[401483412,1768259449935,-659.93,0.00018,7]
[401483413,1768259449945,-2946334.97713926,0.00018,2]
[401483416,1768259450508,-2877.58134153,0.00018,2]
[401483417,1768259450808,-761.31055,0.000179,2]
[401483418,1768259450819,-152.48097893,0.000179,2]
[401483419,1768259450829,-805338.66902143,0.00018,2]
[401483421,1768259451021,-6450.43938499,0.00017271,2]
[401483422,1768259451036,-105.56061501,0.00017271,2]
[401483423,1768259451047,-805.02404499,0.00018,2]
[401483448,1768260417123,-340.37916333,0.00012696,2]
[401483455,1768260495371,-159.62083667,0.00012696,2]
[401483456,1768260495394,-300.0,0.00012788,2]
[401483457,1768260495417,-250.0,0.00012879,2]
[401483459,1768260495440,-150.0,0.0001306,2]
[401483460,1768260495462,-300.0,0.0001306,2]
[401483461,1768260495486,-300.0,0.0001306,2]
[401483462,1768260495509,-1200.0,0.00013061,2]
[401483463,1768260495531,-500.0,0.00013061,2]
[401483464,1768260495558,-500.0,0.00013061,2]
[401483465,1768260495579,-500.0,0.00013061,2]
[401483466,1768260495606,-500.0,0.00013061,2]
[401483467,1768260495630,-456.46564164,0.00013061,2]
[401483468,1768260495662,-500.0,0.00013061,2]
[401483469,1768260495692,-500.0,0.00013061,2]
[401483470,1768260495725,-500.0,0.00013061,2]
[401483471,1768260495753,-500.0,0.00013061,2]
[401483472,1768260495781,-500.0,0.00013061,2]
[401483473,1768260495807,-500.0,0.00013061,2]
[401483474,1768260495833,-500.0,0.00013061,2]
[401483475,1768260495860,-500.0,0.00013061,2]
[401483476,1768260495887,-500.0,0.00013061,2]
[401483477,1768260495915,-500.0,0.00013061,2]
[401483478,1768260495943,-500.0,0.00013061,2]
[401483479,1768260495970,-500.0,0.00013061,2]
[401483480,1768260495997,-500.0,0.00013061,2]
[401483481,1768260496024,-500.0,0.00013061,2]
[401483482,1768260496051,-500.0,0.00013061,2]
[401483483,1768260496078,-500.0,0.00013061,2]
[401483484,1768260496104,-500.0,0.00013061,2]
[401483485,1768260496131,-500.0,0.00013061,2]
[401483486,1768260496157,-500.0,0.00013061,2]
[401483487,1768260496186,-500.0,0.00013061,2]
[401483488,1768260496213,-500.0,0.00013061,2]
[401483489,1768260496240,-500.0,0.00013061,2]
[401483490,1768260496268,-500.0,0.00013061,2]
[401483491,1768260496298,-500.0,0.00013061,2]
[401483492,1768260496327,-393.92841639,0.00013061,2]
[401483493,1768260496355,-500.0,0.00013061,2]
[401483494,1768260496381,-500.0,0.00013061,2]
[401483495,1768260496409,-500.0,0.00013061,2]
[401483496,1768260496437,-500.0,0.00013061,2]
[401483497,1768260496466,-489.9851053,0.00013061,2]
[401483509,1768260567234,-300.0,0.00012789,2]
[401483510,1768260567259,-252.34656851,0.0001279,2]
[401483511,1768260567280,-500.0,0.0001279,2]
[401483512,1768260567300,-500.0,0.0001279,2]
[401483513,1768260567320,-150.0,0.0001279,2]
[401483514,1768260567340,-150.0,0.0001279,2]
[401483515,1768260567360,-150.0,0.0001279,2]
[401483516,1768260567380,-500.0,0.0001279,2]
[401483517,1768260567400,-500.0,0.0001279,2]
[401483518,1768260567422,-172.85343149,0.0001279,2]
[401483519,1768260594130,1101.0,0.00011304,2]
[401483520,1768260598878,1101.0,0.00011217,2]
[401483526,1768260631666,-865.07238644,0.00011899,2]
[401483533,1768260631917,-235.92761356,0.00011899,2]
[401483535,1768260631927,-300.0,0.00012212,2]
[401483537,1768260631936,-1101.0,0.00012525,2]
[401483539,1768260631946,-1200.0,0.00012789,2]
[401483541,1768260631955,-300.0,0.00012789,2]
[401483543,1768260631964,-327.14656851,0.0001279,2]
[401483544,1768260631974,-150.0,0.0001279,2]
[401483545,1768260631984,-150.0,0.0001279,2]
[401483546,1768260631993,-500.0,0.0001279,2]
[401483547,1768260632003,-500.0,0.0001279,2]
[401483548,1768260632012,-150.0,0.0001279,2]
[401483549,1768260632022,-500.0,0.0001279,2]
[401483550,1768260632031,-500.0,0.0001279,2]
[401483551,1768260632041,-500.0,0.0001279,2]
[401483552,1768260632050,-150.0,0.00012844,2]
[401483553,1768260632060,-500.0,0.00012845,2]
[401483554,1768260632069,-500.0,0.00012845,2]
[401483555,1768260632078,-150.0,0.00012845,2]
[401483556,1768260632087,-150.0,0.00012845,2]
[401483557,1768260632097,-500.0,0.00012845,2]
[401483558,1768260632106,-500.0,0.00012845,2]
[401483559,1768260632115,-500.0,0.00012845,2]
[401483560,1768260632125,-200.0,0.00012845,2]
[401483561,1768260632135,-500.0,0.00012845,2]
[401483562,1768260632144,-500.0,0.00012845,2]
[401483563,1768260632154,-500.0,0.00012845,2]
[401483564,1768260632164,-500.0,0.00012845,2]
[401483565,1768260632173,-500.0,0.00012845,2]
[401483566,1768260632183,-350.0,0.000129,2]
[401483567,1768260632192,-500.0,0.000129,2]
[401483568,1768260632201,-200.0,0.000129,2]
[401483569,1768260632211,-150.0,0.000129,2]
[401483570,1768260632220,-500.0,0.000129,2]
[401483571,1768260632230,-319.0,0.000129,2]
[401483572,1768260632239,-400.0,0.000129,2]
[401483573,1768260632249,-648.69425671,0.000129,2]
[401483574,1768260632259,-500.0,0.000129,2]
[401483575,1768260632272,-500.0,0.000129,2]
[401483576,1768260632282,-174.78328857,0.000129,2]
[401483577,1768260632291,-500.0,0.000129,2]
[401483578,1768260632300,-150.0,0.00012954,2]
[401483579,1768260632310,-500.0,0.00012954,2]
[401483580,1768260632319,-516.31193931,0.00012954,2]
[401483581,1768260632329,-486.0,0.00012954,2]
[401483582,1768260632339,-500.0,0.00012954,2]
[401483583,1768260632349,-202.08698658,0.00013009,2]
[401483584,1768260632358,-578.52589726,0.00013009,2]
[401483585,1768260632368,-500.0,0.00013009,2]
[401483586,1768260632378,-617.0,0.0001306,2]
[401483587,1768260632388,-500.0,0.0001306,2]
[401483588,1768260632397,-500.0,0.0001306,2]
[401483589,1768260632406,-500.0,0.0001306,2]
[401483590,1768260632416,-500.0,0.0001306,2]
[401483591,1768260632425,-500.0,0.0001306,2]
[401483592,1768260632435,-500.0,0.0001306,2]
[401483593,1768260632444,-500.0,0.0001306,2]
[401483594,1768260632453,-500.0,0.0001306,2]
[401483595,1768260632463,-500.0,0.0001306,2]
[401483596,1768260632472,-500.0,0.0001306,2]
[401483597,1768260632481,-500.0,0.0001306,2]
[401483598,1768260632490,-500.0,0.0001306,2]
[401483599,1768260632500,-500.0,0.0001306,2]
[401483600,1768260632509,-500.0,0.0001306,2]
[401483601,1768260632518,-500.0,0.0001306,2]
[401483602,1768260632528,-500.0,0.0001306,2]
[401483603,1768260632537,-500.0,0.0001306,2]
[401483604,1768260632546,-500.0,0.0001306,2]
[401483605,1768260632556,-500.0,0.0001306,2]
[401483606,1768260632565,-500.0,0.0001306,2]
[401483607,1768260632575,-500.0,0.0001306,2]
[401483608,1768260632585,-500.0,0.0001306,2]
[401483609,1768260632594,-500.0,0.0001306,2]
[401483610,1768260632604,-500.0,0.0001306,2]
[401483611,1768260632613,-500.0,0.0001306,2]
[401483612,1768260632623,-500.0,0.0001306,2]
[401483613,1768260632632,-500.0,0.0001306,2]
[401483614,1768260632645,-500.0,0.0001306,2]
[401483615,1768260632655,-500.0,0.0001306,2]
[401483616,1768260632668,-500.0,0.0001306,2]
[401483617,1768260632677,-500.0,0.0001306,2]
[401483618,1768260632686,-500.0,0.0001306,2]
[401483619,1768260632696,-642.1760709,0.0001306,2]
[401483620,1768260632707,-500.0,0.0001306,2]
[401483621,1768260632716,-500.0,0.0001306,2]
[401483622,1768260632725,-500.0,0.0001306,2]
[401483623,1768260632736,-500.0,0.0001306,2]
[401483624,1768260632746,-500.0,0.0001306,2]
[401483625,1768260632756,-500.0,0.0001306,2]
[401483626,1768260632766,-500.0,0.0001306,2]
[401483627,1768260632775,-500.0,0.0001306,2]
[401483628,1768260632785,-500.0,0.0001306,2]
[401483629,1768260632794,-450.0,0.0001306,2]
[401483630,1768260632804,-1000.0,0.00013063,2]
[401483631,1768260632814,-21115.18,0.00013064,2]
[401483632,1768260632823,-300.0,0.00013089,2]
[401483633,1768260632833,-250.0,0.00013089,2]
[401483634,1768260632842,-236.72226037,0.00013115,2]
[401483635,1768260632851,-1101.0,0.00013184,2]
[401483636,1768260632861,-500.0,0.00013334,2]
[401483637,1768260632871,-150.0,0.00013435,2]
[401483638,1768260632880,-500.0,0.00013436,2]
[401483639,1768260632890,-500.0,0.00013436,2]
[401483640,1768260632899,-150.0,0.00013436,2]
[401483641,1768260632908,-500.0,0.00013436,2]
[401483642,1768260632917,-500.0,0.00013436,2]
[401483643,1768260632926,-500.0,0.00013436,2]